fUSD/lending_fUSD_20241029
["ID","MTS","AMOUNT","RATE_DAILY","PERIOD"]
[340975031,1730198850702,-150.0,0.00019463,2]
[340975032,1730198850725,-150.0,0.00019464,2]
[340975033,1730198850750,-150.0,0.00019468,2]
[340975034,1730198850774,-150.0,0.00019468,2]
[340975035,1730198850798,-150.0,0.00019469,2]
[340975036,1730198850821,-150.0,0.0001947,2]
[340975037,1730198850846,-150.0,0.00019479,2]
[340975038,1730198850871,-150.0,0.00019483,2]
[340975039,1730198850897,-150.0,0.00019485,2]
[340975040,1730198850923,-150.0,0.00019486,2]
[340975041,1730198850948,-150.0,0.00019488,2]
[340975042,1730198850973,-150.0,0.00019488,2]
[340975043,1730198850999,-150.0,0.00019489,2]
[340975044,1730198851024,-150.0,0.00019491,2]
[340975045,1730198851049,-150.0,0.00019492,2]
[340975046,1730198851074,-150.0,0.00019496,2]
[340975047,1730198851099,-1500.0,0.00019497,2]
[340975048,1730198851125,-150.0,0.00019497,2]
[340975049,1730198851149,-150.0,0.00019498,2]
[340975050,1730198851173,-150.0,0.000195,2]
[340975051,1730198851199,-150.0,0.00019501,2]
[340975052,1730198851222,-1500.0,0.00019503,2]
[340975053,1730198851248,-150.0,0.00019503,2]
[340975054,1730198851273,-150.0,0.00019504,2]
[340975055,1730198851295,-150.0,0.00019505,2]
[340975056,1730198851423,-1500.0,0.00019505,2]
[340975057,1730198851452,-150.0,0.00019505,2]
[340975058,1730198851477,-150.0,0.00019506,2]
[340975059,1730198851502,-150.0,0.00019506,2]
[340975060,1730198851528,-150.0,0.00019508,2]
[340975061,1730198851552,-150.0,0.00019509,2]
[340975062,1730198851576,-150.0,0.00019513,2]
[340975063,1730198851602,-150.0,0.00019513,2]
[340975064,1730198851624,-154.52467995,0.00019513,2]
[340975065,1730198851648,-150.0,0.00019518,2]
[340975066,1730198851672,-150.0,0.00019518,2]
[340975067,1730198851695,-150.0,0.0001952,2]
[340975068,1730198851719,-150.0,0.00019522,2]
[340975069,1730198851744,-150.0,0.00019522,2]
[340975070,1730198851767,-150.0,0.00019529,2]
[340975071,1730198851791,-1500.0,0.00019529,2]
[340975072,1730198851815,-150.0,0.00019531,2]
[340975073,1730198851842,-150.0,0.00019531,2]
[340975074,1730198851867,-150.0,0.00019535,2]
[340975075,1730198851893,-150.0,0.00019538,2]
[340975076,1730198851918,-150.0,0.00019539,2]
[340975077,1730198851944,-150.0,0.00019539,2]
[340975078,1730198851968,-150.0,0.0001955,2]
[340975079,1730198851992,-291.23647677,0.0001955,2]
[340975080,1730198852017,-150.0,0.00019552,2]
[340975081,1730198852042,-150.0,0.00019557,2]
[340975082,1730198852067,-150.0,0.00019557,2]
[340975083,1730198852093,-150.0,0.00019559,2]
[340975084,1730198852117,-293.77573986,0.00019566,2]
[340975085,1730198852141,-150.0,0.00019567,2]
[340975086,1730198852167,-150.0,0.0001957,2]
[340975087,1730198852192,-150.0,0.0001957,2]
[340975088,1730198852217,-150.0,0.00019575,2]
[340975089,1730198852242,-150.0,0.00019587,2]
[340975090,1730198852268,-150.0,0.00019594,2]
[340975091,1730198852292,-150.0,0.00019594,2]
[340975092,1730198852315,-150.0,0.00019595,2]
[340975093,1730198852341,-150.0,0.00019599,2]
[340975094,1730198852366,-150.0,0.000196,2]
[340975095,1730198852391,-150.0,0.00019601,2]
[340975096,1730198852419,-150.0,0.00019602,2]
[340975097,1730198852447,-150.0,0.00019605,2]
[340975098,1730198852472,-150.0,0.00019608,2]
[340975099,1730198852496,-150.0,0.00019608,2]
[340975100,1730198852523,-150.0,0.00019609,2]
[340975101,1730198852548,-150.0,0.00019609,2]
[340975102,1730198852578,-150.0,0.0001961,2]
[340975103,1730198852603,-150.0,0.00019614,2]
[340975104,1730198852629,-150.0,0.00019614,2]
[340975105,1730198852654,-150.0,0.00019615,2]
[340975106,1730198852678,-150.0,0.00019617,2]
[340975107,1730198852703,-150.0,0.00019617,2]
[340975108,1730198852728,-150.0,0.0001962,2]
[340975109,1730198852753,-150.0,0.0001962,2]
[340975110,1730198852777,-150.0,0.00019625,2]
[340975111,1730198852802,-150.0,0.00019628,2]
[340975112,1730198852828,-150.0,0.00019628,2]
[340975113,1730198852853,-150.0,0.00019629,2]
[340975114,1730198852877,-863.9013378,0.0001963,2]
[340975120,1730199031462,-500.0,0.000159,2]
[340975121,1730199031471,-155.084585,0.00017234,2]
[340975122,1730199031482,-151.0,0.00017234,2]
[340975123,1730199031491,-154.55526,0.00017234,2]
[340975124,1730199031501,-151.0,0.00017234,2]
[340975125,1730199031511,-151.0,0.00017234,2]
[340975126,1730199031520,-173.306067,0.00017234,2]
[340975127,1730199031530,-257.04423096,0.00017439,2]
[340975128,1730199031539,-300.0,0.00017538,2]
[340975129,1730199031548,-151.0,0.00017539,2]
[340975130,1730199031558,-151.0,0.00017539,2]
[340975131,1730199031567,-151.0,0.00017539,2]
[340975132,1730199031577,-151.0,0.00017733,2]
[340975133,1730199031588,-151.0,0.00017733,2]
[340975134,1730199031598,-151.0,0.00017733,2]
[340975135,1730199031607,-151.0,0.00018,2]
[340975136,1730199031616,-151.0,0.00018,2]
[340975137,1730199031626,-151.0,0.00018,2]
[340975138,1730199031636,-275.33005705,0.00018059,2]
[340975141,1730199037514,-136.15057353,0.00018059,2]
[340975142,1730199037524,-411.48063058,0.00018123,2]
[340975143,1730199037534,-411.48063058,0.00018479,2]
[340975144,1730199037543,-999.99,0.00018479,2]
[340975145,1730199037552,-239.86576531,0.00018513,2]
[340975284,1730199039524,-1554.60969396,0.00018513,2]
[340975453,1730199041433,-22105.52454073,0.00018513,2]
[340975454,1730199041442,-1000.0,0.00018546,2]
[340975456,1730199041451,-411.48063058,0.00018761,2]
[340975458,1730199041462,-151.0,0.00019048,2]
[340975460,1730199041471,-151.0,0.00019048,2]
[340975462,1730199041480,-151.0,0.00019048,2]
[340975464,1730199041490,-411.48063058,0.00019054,2]
[340975466,1730199041499,-420.0,0.00019145,2]
[340975468,1730199041508,-411.48063058,0.00019336,2]
[340975470,1730199041517,-150.0,0.0001938,2]
[340975472,1730199041526,-150.0,0.00019382,2]
[340975473,1730199041535,-150.0,0.00019383,2]
[340975475,1730199041544,-150.0,0.00019384,2]
[340975477,1730199041553,-150.0,0.00019391,2]
[340975479,1730199041562,-150.0,0.00019394,2]
[340975481,1730199041571,-150.0,0.00019397,2]
[340975483,1730199041579,-150.0,0.00019401,2]
[340975485,1730199041588,-150.0,0.00019402,2]
[340975486,1730199041597,-150.0,0.00019405,2]
[340975488,1730199041606,-150.0,0.00019407,2]
[340975490,1730199041615,-1154.0,0.00019412,2]
[340975492,1730199041625,-837.27242997,0.00019412,2]
[340975504,1730199041740,-5065.72757003,0.00019412,2]
[340975506,1730199041750,-13571.0,0.00019412,2]
[340975508,1730199041761,-155.421,0.00019412,2]
[340975510,1730199041771,-150.0,0.00019412,2]
[340975512,1730199041779,-1087.0,0.00019412,2]
[340975514,1730199041789,-150.0,0.00019422,2]
[340975516,1730199041798,-150.0,0.00019429,2]
[340975518,1730199041806,-150.0,0.00019435,2]
[340975520,1730199041816,-150.0,0.00019436,2]
[340975522,1730199041825,-150.0,0.00019437,2]
[340975524,1730199041834,-150.0,0.00019438,2]
[340975526,1730199041843,-150.0,0.00019443,2]
[340975528,1730199041852,-150.0,0.00019446,2]
[340975530,1730199041861,-150.0,0.00019453,2]
[340975532,1730199041870,-150.0,0.00019456,2]
[340975533,1730199041879,-150.0,0.00019458,2]
[340975535,1730199041889,-150.0,0.00019459,2]
[340975537,1730199041901,-150.0,0.0001946,2]
[340975539,1730199041914,-150.0,0.00019466,2]
[340975541,1730199041923,-150.0,0.00019467,2]
[340975543,1730199041932,-150.0,0.00019469,2]
[340975545,1730199041941,-150.0,0.00019475,2]
[340975547,1730199041950,-150.0,0.00019478,2]
[340975549,1730199041961,-150.0,0.00019481,2]
[340975551,1730199041969,-150.0,0.00019486,2]
[340975553,1730199041978,-150.0,0.00019486,2]
[340975555,1730199041987,-150.0,0.00019488,2]
[340975557,1730199041997,-150.0,0.00019493,2]
[340975559,1730199042006,-150.0,0.00019497,2]
[340975561,1730199042015,-150.0,0.00019499,2]
[340975563,1730199042025,-150.0,0.00019499,2]
[340975565,1730199042035,-150.0,0.00019504,2]
[340975567,1730199042044,-150.0,0.00019508,2]
[340975569,1730199042055,-150.0,0.00019509,2]
[340975571,1730199042065,-150.0,0.00019513,2]
[340975573,1730199042076,-150.0,0.00019514,2]
[340975575,1730199042087,-150.0,0.00019515,2]
[340975577,1730199042096,-150.0,0.00019521,2]
[340975579,1730199042108,-150.0,0.00019528,2]
[340975581,1730199042120,-150.0,0.00019535,2]
[340975583,1730199042130,-150.0,0.00019538,2]
[340975585,1730199042139,-150.0,0.00019541,2]
[340975587,1730199042149,-150.0,0.00019546,2]
[340975589,1730199042159,-150.0,0.00019546,2]
[340975591,1730199042168,-150.0,0.00019549,2]
[340975593,1730199042178,-150.0,0.00019549,2]
[340975595,1730199042187,-150.0,0.00019551,2]
[340975598,1730199042198,-150.0,0.00019553,2]
[340975600,1730199042209,-150.0,0.00019555,2]
[340975601,1730199042219,-150.0,0.00019558,2]
[340975603,1730199042228,-150.0,0.00019561,2]
[340975604,1730199042237,-150.0,0.00019567,2]
[340975606,1730199042247,-150.0,0.00019568,2]
[340975609,1730199042258,-150.0,0.00019572,2]
[340975611,1730199042269,-150.0,0.00019572,2]
[340975613,1730199042279,-150.0,0.00019574,2]
[340975615,1730199042288,-150.0,0.00019577,2]
[340975617,1730199042297,-150.0,0.00019578,2]
[340975620,1730199042306,-150.0,0.0001958,2]
[340975623,1730199042316,-150.0,0.00019595,2]
[340975625,1730199042325,-150.0,0.00019599,2]
[340975627,1730199042334,-150.0,0.000196,2]
[340975629,1730199042343,-151.0,0.000196,2]
[340975630,1730199042353,-151.0,0.000196,2]
[340975632,1730199042362,-151.0,0.000196,2]
[340975634,1730199042371,-150.0,0.00019601,2]
[340975636,1730199042381,-150.0,0.00019608,2]
[340975638,1730199042390,-150.0,0.00019614,2]
[340975640,1730199042400,-150.0,0.00019618,2]
[340975642,1730199042409,-150.0,0.0001962,2]
[340975644,1730199042419,-150.0,0.00019622,2]
[340975646,1730199042427,-150.0,0.00019624,2]
[340975648,1730199042437,-245.63443717,0.00019629,2]
[340975650,1730199042447,-636.0986622,0.0001963,2]
[340975652,1730199042456,-2000.0,0.0001963,2]
[340975653,1730199042466,-200.0,0.0001963,2]
[340975655,1730199042475,-1500.0,0.00019631,2]
[340975657,1730199042485,-150.0,0.00019631,2]
[340975659,1730199042495,-150.0,0.00019631,2]
[340975661,1730199042504,-500.0,0.00019631,2]
[340975662,1730199042514,-500.0,0.00019631,2]
[340975663,1730199042523,-500.0,0.00019631,2]
[340975664,1730199042533,-500.0,0.00019631,2]
[340975665,1730199042542,-500.0,0.00019631,2]
[340975666,1730199042551,-500.0,0.00019631,2]
[340975667,1730199042560,-500.0,0.00019631,2]
[340975668,1730199042569,-500.0,0.00019631,2]
[340975669,1730199042578,-500.0,0.00019631,2]
[340975670,1730199042587,-500.0,0.00019631,2]
[340975671,1730199042596,-500.0,0.00019631,2]
[340975672,1730199042605,-500.0,0.00019631,2]
[340975673,1730199042613,-500.0,0.00019631,2]
[340975675,1730199042622,-500.0,0.00019631,2]
[340975677,1730199042631,-500.0,0.00019631,2]
[340975679,1730199042640,-500.0,0.00019631,2]
[340975681,1730199042649,-500.0,0.00019631,2]
[340975682,1730199042658,-500.0,0.00019631,2]
[340975684,1730199042667,-150.0,0.00019633,2]
[340975686,1730199042681,-150.0,0.00019634,2]
[340975688,1730199042690,-150.0,0.00019638,2]
[340975690,1730199042700,-150.0,0.00019641,2]
[340975692,1730199042710,-150.0,0.00019644,2]
[340975694,1730199042721,-150.0,0.00019645,2]
[340975696,1730199042730,-150.0,0.00019646,2]
[340975698,1730199042739,-150.0,0.00019647,2]
[340975700,1730199042749,-150.0,0.00019647,2]
[340975701,1730199042758,-150.0,0.00019648,2]
[340975703,1730199042767,-150.0,0.00019649,2]
[340975705,1730199042776,-150.0,0.00019652,2]
[340975707,1730199042785,-150.0,0.00019652,2]
[340975709,1730199042794,-150.0,0.00019655,2]
[340975711,1730199042804,-150.0,0.00019696,2]
[340975713,1730199042814,-800.0,0.000198,7]
[340975715,1730199042824,-411.48063058,0.00019852,2]
[340975717,1730199042833,-300.0,0.00019899,10]
[340975719,1730199042842,-2321.1116176,0.000199,3]
[340975720,1730199042852,-220.0,0.000199,2]
[340975722,1730199042861,-171.88172399,0.000199,2]
[340975724,1730199042871,-151.0,0.000199,2]
[340975726,1730199042880,-151.0,0.000199,2]
[340975738,1730199042986,-161.782927,0.000199,2]
[340975740,1730199042997,-156.081928,0.000199,2]
[340975742,1730199043007,-397.0,0.000199,2]
[340975744,1730199043016,-151.0,0.000199,2]
[340975746,1730199043026,-151.0,0.000199,2]
[340975748,1730199043035,-1700.0,0.000199,7]
[340975750,1730199043044,-151.0,0.000199,2]
[340975752,1730199043054,-159.557761,0.000199,2]
[340975754,1730199043063,-151.0,0.000199,2]
[340975756,1730199043072,-345.48081634,0.000199,2]
[340975758,1730199043082,-34539.79811263,0.000199,2]
[340975760,1730199043091,-1761.5348827,0.00019917,2]
[340975762,1730199043102,-7536.0143935,0.00019931,2]
[340975764,1730199043111,-279.195,0.00019959,2]
[340975766,1730199043123,-500.0,0.00019973,2]
[340975768,1730199043132,-500.0,0.00019973,2]
[340975770,1730199043142,-245.66845932,0.00019973,2]
[340975772,1730199043152,-190.0,0.00019973,2]
[340975774,1730199043163,-151.93957,0.00019973,2]
[340975776,1730199043173,-151.93957,0.00019973,2]
[340975777,1730199043182,-300.0,0.00019999,10]
[340975779,1730199043191,-500.0,0.00019999,2]
[340975781,1730199043200,-500.0,0.00019999,2]
[340975783,1730199043211,-500.0,0.00019999,2]
[340975785,1730199043220,-500.0,0.00019999,2]
[340975787,1730199043231,-500.0,0.00019999,2]
[340975789,1730199043241,-500.0,0.00019999,2]
[340975791,1730199043252,-500.0,0.00019999,2]
[340975793,1730199043263,-500.0,0.00019999,2]
[340975795,1730199043272,-500.0,0.00019999,2]
[340975797,1730199043281,-276.65029436,0.00019999,2]
[340975799,1730199043290,-500.0,0.00019999,2]
[340975800,1730199043300,-285.87845537,0.00019999,2]
[340975802,1730199043310,-500.0,0.00019999,2]
[340975804,1730199043319,-500.0,0.00019999,2]
[340975806,1730199043328,-500.0,0.00019999,2]
[340975808,1730199043339,-500.0,0.00019999,2]
[340975809,1730199043348,-500.0,0.00019999,2]
[340975811,1730199043358,-200.11491875,0.00019999,2]
[340975813,1730199043369,-500.0,0.00019999,2]
[340975815,1730199043378,-500.0,0.00019999,2]
[340975817,1730199043388,-25043.29341279,0.0002,2]
[340975834,1730199043553,-150.0,0.00019385,2]
[340975836,1730199043563,-150.0,0.00019399,2]
[340975838,1730199043573,-150.0,0.00019399,2]
[340975840,1730199043583,-150.0,0.00019399,2]
[340975842,1730199043595,-150.0,0.00019412,2]
[340975844,1730199043604,-150.0,0.00019419,2]
[340975846,1730199043613,-150.0,0.00019436,2]
[340975848,1730199043623,-150.0,0.00019481,2]
[340975850,1730199043632,-150.0,0.00019482,2]
[340975852,1730199043642,-150.0,0.00019525,2]
[340975854,1730199043653,-150.0,0.00019536,2]
[340975856,1730199043663,-150.0,0.00019547,2]
[340975857,1730199043674,-150.0,0.00019552,2]
[340975859,1730199043685,-150.0,0.00019559,2]
[340975861,1730199043694,-72.3259945,0.00019568,2]
[340975866,1730199043737,-150.0,0.00019378,2]
[340975868,1730199043747,-150.0,0.00019387,2]
[340975870,1730199043760,-150.0,0.00019418,2]
[340975872,1730199043769,-77.6740055,0.00019568,2]
[340975874,1730199043780,-150.0,0.00019585,2]
[340975876,1730199043790,-150.0,0.0001959,2]
[340975878,1730199043800,-150.0,0.00019613,2]
[340975880,1730199043810,-150.0,0.00019632,2]
[340975882,1730199043819,-150.0,0.00019644,2]
[340975884,1730199043829,-150.0,0.00019651,2]
[340975886,1730199043840,-10169.42658621,0.0002,2]
[340975888,1730199043849,-6268.75540841,0.0002,2]
[340976331,1730199049171,-150.0,0.00019339,2]
[340976332,1730199049181,-150.0,0.0001935,2]
[340976333,1730199049190,-150.0,0.00019368,2]
[340976334,1730199049200,-150.0,0.00019378,2]
[340976335,1730199049209,-150.0,0.00019381,2]
[340976336,1730199049219,-150.0,0.00019387,2]
[340976337,1730199049229,-150.0,0.00019393,2]
[340976338,1730199049241,-150.0,0.00019393,2]
[340976339,1730199049253,-150.0,0.00019394,2]
[340976340,1730199049262,-150.0,0.000194,2]
[340976341,1730199049272,-150.0,0.00019408,2]
[340976342,1730199049287,-150.0,0.00019411,2]
[340976343,1730199049305,-150.0,0.00019415,2]
[340976344,1730199049320,-150.0,0.00019418,2]
[340976345,1730199049333,-150.0,0.00019424,2]
[340976346,1730199049347,-150.0,0.00019427,2]
[340976347,1730199049363,-150.0,0.00019444,2]
[340976348,1730199049378,-150.0,0.00019472,2]
[340976349,1730199049393,-150.0,0.00019474,2]
[340976350,1730199049409,-150.0,0.00019477,2]
[340976351,1730199049422,-150.0,0.00019488,2]
[340976352,1730199049436,-150.0,0.00019497,2]
[340976353,1730199049449,-150.0,0.00019509,2]
[340976355,1730199049465,-150.0,0.00019514,2]
[340976358,1730199049478,-150.0,0.00019515,2]
[340976360,1730199049490,-150.0,0.00019526,2]
[340976362,1730199049502,-150.0,0.00019528,2]
[340976364,1730199049514,-150.0,0.00019528,2]
[340976367,1730199049529,-150.0,0.00019532,2]
[340976369,1730199049543,-150.0,0.00019538,2]
[340976370,1730199049559,-150.0,0.00019538,2]
[340976371,1730199049576,-150.0,0.00019541,2]
[340976372,1730199049591,-150.0,0.00019542,2]
[340976373,1730199049603,-150.0,0.00019544,2]
[340976374,1730199049614,-150.0,0.00019549,2]
[340976375,1730199049628,-150.0,0.00019549,2]
[340976376,1730199049644,-150.0,0.00019551,2]
[340976377,1730199049658,-150.0,0.00019554,2]
[340976378,1730199049673,-150.0,0.00019559,2]
[340976379,1730199049685,-150.0,0.00019559,2]
[340976381,1730199049700,-150.0,0.00019565,2]
[340976383,1730199049713,-150.0,0.00019571,2]
[340976385,1730199049726,-150.0,0.00019573,2]
[340976387,1730199049739,-150.0,0.00019574,2]
[340976389,1730199049751,-150.0,0.00019575,2]
[340976391,1730199049763,-150.0,0.00019575,2]
[340976393,1730199049777,-150.0,0.00019578,2]
[340976396,1730199049789,-150.0,0.0001958,2]
[340976398,1730199049801,-148.73789177,0.00019582,2]
[340976444,1730199118105,-411.48063059,0.00018954,2]
[340976445,1730199118153,-196.73,0.00019178,2]
[340976446,1730199118201,-411.48063059,0.00019252,2]
[340976447,1730199118248,-250.0,0.00019363,2]
[340976448,1730199118297,-150.0,0.00019449,2]
[340976449,1730199118345,-150.0,0.00019449,2]
[340976450,1730199118499,-1.26210823,0.00019582,2]
[340976451,1730199118551,-150.0,0.00019584,2]
[340976452,1730199118601,-150.0,0.00019589,2]
[340976453,1730199118650,-150.0,0.00019597,2]
[340976454,1730199118700,-150.0,0.00019601,2]
[340976455,1730199118750,-150.0,0.00019604,2]
[340976456,1730199118799,-150.0,0.00019608,2]
[340976457,1730199118852,-150.0,0.00019613,2]
[340976458,1730199118903,-150.0,0.00019618,2]
[340976459,1730199118954,-150.0,0.00019618,2]
[340976460,1730199119005,-150.0,0.00019651,2]
[340976461,1730199119052,-411.48063059,0.00019758,2]
[340976462,1730199119101,-657.5262,0.000199,2]
[340976463,1730199119149,-325.5444693,0.00019917,2]
[340976464,1730199119199,-8295.0,0.00019983,2]
[340976465,1730199119324,-184.22582788,0.00019999,2]
[340976466,1730199119371,-140041.7067452,0.0002,2]
[340976467,1730199119419,-295.94860319,0.0002,2]
[340976468,1730199119466,-2081.69778518,0.0002,2]
[340976469,1730199119514,-775.71409564,0.0002,2]
[340976470,1730199119561,-143860.20227361,0.0002,2]
[340976471,1730199131857,-6494.48416143,0.0002,2]
[340976472,1730199131906,-467.79424915,0.0002,10]
[340976473,1730199131955,-7980.61297273,0.0002,2]
[340976474,1730199132002,-1013.0,0.0002,6]
[340976475,1730199132052,-3801.72581264,0.0002,2]
[340976476,1730199132206,-3950.0,0.0002,2]
[340976477,1730199132254,-154.175747,0.0002,2]
[340976478,1730199132302,-155.234373,0.0002,2]
[340976479,1730199132350,-151.0,0.0002,2]
[340976480,1730199132400,-152.964029,0.0002,2]
[340976481,1730199132448,-152.650752,0.0002,2]
[340976482,1730199132496,-151.0,0.0002,2]
[340976483,1730199132545,-255.256223,0.0002,2]
[340976484,1730199132594,-151.0,0.0002,2]
[340976485,1730199132641,-151.0,0.0002,2]
[340976486,1730199132689,-151.0,0.0002,2]
[340976487,1730199132738,-151.0,0.0002,2]
[340976488,1730199132786,-151.0,0.0002,2]
[340976489,1730199132835,-151.0,0.0002,2]
[340976490,1730199132884,-151.0,0.0002,2]
[340976491,1730199133013,-281.413308,0.0002,2]
[340976492,1730199133062,-241.737196,0.0002,2]
[340976493,1730199133111,-241.737196,0.0002,2]
[340976494,1730199133160,-241.737196,0.0002,2]
[340976495,1730199133210,-241.737196,0.0002,2]
[340976496,1730199133259,-241.737196,0.0002,2]
[340976497,1730199133308,-241.737196,0.0002,2]
[340976498,1730199133356,-150.0,0.0002,2]
[340976499,1730199133407,-151.0,0.0002,2]
[340976500,1730199133457,-167.936266,0.0002,2]
[340976501,1730199133506,-151.0,0.0002,2]
[340976502,1730199133555,-151.0,0.0002,2]
[340976503,1730199133603,-151.0,0.0002,2]
[340976504,1730199133650,-1000.0,0.0002,2]
[340976505,1730199133777,-500.0,0.0002,2]
[340976506,1730199133829,-157.19,0.00020223,2]
[340976507,1730199133882,-165.49,0.00020253,2]
[340976508,1730199133930,-411.4806306,0.0002026,2]
[340976509,1730199134000,-169.62,0.00020295,2]
[340976510,1730199134054,-180.0,0.00020313,2]
[340976511,1730199134106,-182.39,0.00020438,2]
[340976512,1730199134158,-525.54,0.0002086,2]
[340976513,1730199134209,-1000.0,0.00020864,2]
[340976514,1730199134261,-500.0,0.00020973,2]
[340976515,1730199134310,-493.85331221,0.00020973,2]
[340976516,1730199134360,-307.14581769,0.00020999,10]
[340976517,1730199134410,-912.56641354,0.00021,10]
[340976518,1730199134460,-1392.34823203,0.00021,2]
[340976519,1730199134512,-257112.99411816,0.00021,4]
[340976520,1730199134658,-20242.61305945,0.00021,4]
[340976521,1730199134710,-20242.07825435,0.00021,4]
[340976522,1730199134760,-20242.17361668,0.00021,4]
[340976523,1730199134810,-1135.74146323,0.00021,2]
[340976524,1730199134858,-187.40135788,0.00021,2]
[340976525,1730199134908,-275.946403,0.00021,2]
[340976526,1730199134958,-151.0,0.00021,2]
[340976527,1730199135006,-241.737196,0.00021,2]
[340976528,1730199135056,-241.737196,0.00021,2]
[340976529,1730199135105,-700.0,0.00021,2]
[340976530,1730199135155,-151.0,0.00021,2]
[340976531,1730199135206,-151.0,0.00021,2]
[340976532,1730199135257,-151.0,0.00021,2]
[340976533,1730199135308,-151.0,0.00021,2]
[340976534,1730199135362,-151.0,0.00021,2]
[340976535,1730199135433,-268.892915,0.00021,2]
[340976536,1730199135507,-153.500228,0.00021,2]
[340976537,1730199135572,-151.0,0.00021,2]
[340976538,1730199135634,-151.0,0.00021,2]
[340976539,1730199135701,-197.076894,0.00021,2]
[340976540,1730199135761,-151.641049,0.00021,2]
[340976541,1730199135828,-151.0,0.00021,2]
[340976542,1730199135890,-151.0,0.00021,2]
[340976543,1730199135953,-582.033102,0.00021,2]
[340976544,1730199136015,-151.0,0.00021,2]
[340976545,1730199136079,-151.0,0.00021,2]
[340976546,1730199136141,-582.033102,0.00021,2]
[340976547,1730199136202,-151.0,0.00021,2]
[340976548,1730199136262,-151.0,0.00021,2]
[340976549,1730199136478,-151.0,0.00021,2]
[340976550,1730199136530,-151.0,0.00021,2]
[340976551,1730199136580,-151.0,0.00021,2]
[340976552,1730199136630,-151.0,0.00021,2]
[340976553,1730199136678,-151.0,0.00021,2]
[340976554,1730199136730,-151.0,0.00021,2]
[340976555,1730199136780,-151.0,0.00021,2]
[340976556,1730199136830,-165.49,0.00021265,2]
[340976557,1730199136883,-4467.75509612,0.0002152,2]
[340976558,1730199136930,-182.39,0.00021884,2]
[340976559,1730199136980,-2600.0,0.000219,7]
[340976560,1730199137029,-183.13,0.00021918,2]
[340976561,1730199137078,-201.85,0.00021918,2]
[340976562,1730199137126,-383174.36093928,0.00022,2]
[340976563,1730199137248,-243.79610038,0.00022,2]
[340976564,1730199137298,-764.44530853,0.00022,2]
[340976565,1730199137346,-26178.79045985,0.00022,5]
[340976566,1730199137395,-151.0,0.00022,7]
[340976567,1730199137444,-241.737196,0.00022,7]
[340976568,1730199137494,-241.737196,0.00022,7]
[340976569,1730199137548,-151.0,0.00022,7]
[340976570,1730199137598,-151.0,0.00022,7]
[340976571,1730199137650,-151.0,0.00022,7]
[340976572,1730199137699,-151.0,0.00022,7]
[340976573,1730199137747,-151.0,0.00022,7]
[340976574,1730199137797,-203.834728,0.00022,7]